fUST/lending_fUST_20250228
["ID","MTS","AMOUNT","RATE_DAILY","PERIOD"]
[354772058,1740678640676,-782.2,0.00049315,120]
[354772059,1740678640687,-500.0,0.00049315,120]
[354772060,1740678640696,-516.83079801,0.00049315,120]
[354772061,1740678640706,-501.40026869,0.00049315,120]
[354772062,1740678640716,-500.0,0.00049315,120]
[354772063,1740678640728,-500.0,0.00049315,120]
[354772064,1740678640738,-500.0,0.00049315,120]
[354772065,1740678640750,-660.37,0.00049315,120]
[354772066,1740678640759,-500.0,0.00049315,120]
[354772067,1740678640771,-500.0,0.00049315,120]
[354772068,1740678640780,-500.0,0.00049315,120]
[354772069,1740678640790,-1053.11,0.00049315,120]
[354772070,1740678640802,-500.0,0.00049315,120]
[354772071,1740678640813,-502.85,0.00049315,120]
[354772072,1740678640823,-500.0,0.00049315,120]
[354772073,1740678640831,-500.0,0.00049315,120]
[354772074,1740678640841,-500.0,0.00049315,120]
[354772075,1740678640852,-500.0,0.00049315,120]
[354772076,1740678640862,-500.0,0.00049315,120]
[354772077,1740678640872,-500.0,0.00049315,120]
[354772078,1740678640881,-500.0,0.00049315,120]
[354772079,1740678640891,-500.0,0.00049315,120]
[354772080,1740678640901,-500.0,0.00049315,120]
[354772081,1740678640911,-500.0,0.00049315,120]
[354772082,1740678640922,-500.0,0.00049315,120]
[354772083,1740678640933,-738.48,0.00049315,120]
[354772084,1740678640944,-500.0,0.00049315,120]
[354772085,1740678640954,-500.0,0.00049315,120]
[354772086,1740678640963,-500.0,0.00049315,120]
[354772087,1740678640973,-502.12871722,0.00049315,120]
[354772088,1740678640983,-1105.6,0.00049315,120]
[354772089,1740678640993,-500.0,0.00049315,120]
[354772090,1740678641003,-243.79165378,0.00049315,120]
[354772091,1740678641012,-500.0,0.00049315,120]
[354772092,1740678641022,-500.0,0.00049315,120]
[354772093,1740678641031,-6260.47674744,0.00049315,120]
[354772101,1740678644206,-8378.03,0.00049305,10]
[354772102,1740678644216,-2376.58,0.00049305,30]
[354772103,1740678644226,-5549.49325256,0.00049315,120]
[354772104,1740678644235,-500.0,0.00049315,120]
[354772105,1740678644245,-1165.94,0.00049315,120]
[354772106,1740678644254,-500.0,0.00049315,120]
[354772107,1740678644263,-659.63,0.00049315,120]
[354772108,1740678644273,-500.0,0.00049315,120]
[354772109,1740678644282,-500.0,0.00049315,120]
[354772110,1740678644292,-500.0,0.00049315,120]
[354772111,1740678644301,-500.0,0.00049315,120]
[354772112,1740678644311,-500.0,0.00049315,120]
[354772113,1740678644321,-500.0,0.00049315,120]
[354772114,1740678644330,-500.0,0.00049315,120]
[354772115,1740678644339,-500.0,0.00049315,120]
[354772116,1740678644348,-500.0,0.00049315,120]
[354772117,1740678644358,-500.0,0.00049315,120]
[354772118,1740678644367,-500.0,0.00049315,120]
[354772119,1740678644378,-500.0,0.00049315,120]
[354772120,1740678644387,-500.0,0.00049315,120]
[354772121,1740678644396,-500.0,0.00049315,120]
[354772122,1740678644405,-500.0,0.00049315,120]
[354772123,1740678644415,-500.0,0.00049315,120]
[354772124,1740678644424,-500.0,0.00049315,120]
[354772125,1740678644433,-500.0,0.00049315,120]
[354772126,1740678644443,-500.0,0.00049315,120]
[354772127,1740678644452,-500.0,0.00049315,120]
[354772128,1740678644461,-500.0,0.00049315,120]
[354772129,1740678644470,-495.0,0.00049315,120]
[354772130,1740678644480,-500.0,0.00049315,120]
[354772131,1740678644488,-500.0,0.00049315,120]
[354772132,1740678644497,-500.0,0.00049315,120]
[354772133,1740678644507,-1590.6,0.00049315,120]
[354772134,1740678644517,-500.0,0.00049315,120]
[354772135,1740678644526,-500.0,0.00049315,120]
[354772136,1740678644535,-500.0,0.00049315,120]
[354772137,1740678644545,-500.0,0.00049315,30]
[354772138,1740678644554,-500.0,0.00049315,120]
[354772139,1740678644564,-500.0,0.00049315,120]
[354772140,1740678644575,-418.56414791,0.00049315,120]
[354772141,1740678644584,-500.0,0.00049315,120]
[354772142,1740678644594,-501.47639758,0.00049315,120]
[354772143,1740678644606,-500.0,0.00049315,120]
[354772144,1740678644615,-500.0,0.00049315,120]
[354772145,1740678644624,-506.65727909,0.00049315,120]
[354772146,1740678644634,-500.0,0.00049315,120]
[354772147,1740678644643,-500.0,0.00049315,120]
[354772148,1740678644653,-500.0,0.00049315,120]
[354772149,1740678644662,-500.0,0.00049315,120]
[354772150,1740678644671,-500.0,0.00049315,120]
[354772151,1740678644681,-500.0,0.00049315,120]
[354772152,1740678644691,-500.0,0.00049315,120]
[354772153,1740678644701,-500.0,0.00049315,120]
[354772154,1740678644711,-200.0,0.00049315,7]
[354772155,1740678644721,-923.82,0.00049315,120]
[354772156,1740678644733,-985.71,0.00049315,120]
[354772157,1740678644743,-1072.16,0.00049315,120]
[354772158,1740678644752,-500.0,0.00049315,120]
[354772159,1740678644762,-500.0,0.00049315,120]
[354772160,1740678644772,-500.0,0.00049315,120]
[354772161,1740678644782,-500.0,0.00049315,120]
[354772162,1740678644791,-500.0,0.00049315,120]
[354772163,1740678644800,-500.0,0.00049315,120]
[354772164,1740678644810,-500.0,0.00049315,120]
[354772165,1740678644820,-500.0,0.00049315,120]
[354772166,1740678644829,-500.0,0.00049315,120]
[354772167,1740678644838,-500.0,0.00049315,120]
[354772168,1740678644847,-9943.47,0.00049315,6]
[354772169,1740678644857,-1832.19281708,0.00049315,120]
[354772198,1740678735763,500.0,0.00052626,30]
[354772199,1740678736843,500.0,0.00052626,30]
[354772247,1740679038869,500.0,0.00052626,30]
[354772248,1740679039397,500.0,0.00052626,30]
[354772258,1740679226286,999.44548693,0.00052659,30]
[354772268,1740679596129,-151.04127308,0.00025447,2]
[354772290,1740679618602,500.00000001,0.0002544,15]
[354772296,1740679652631,5000.0,0.00027,10]
[354772310,1740679732183,948.60657836,0.00027,10]
[354772332,1740679831853,-1167.11738974,0.00025447,2]
[354772333,1740679831863,-300.0,0.00025456,2]
[354772334,1740679831873,-2248.0,0.00025457,3]
[354772335,1740679831883,-2247.0,0.00025457,3]
[354772336,1740679831892,-2247.0,0.00025457,3]
[354772337,1740679831902,-2247.0,0.00025457,3]
[354772338,1740679831911,-2247.0,0.00025457,3]
[354772339,1740679831920,-2247.0,0.00025457,3]
[354772340,1740679831930,-263.4620439,0.000269,4]
[354772342,1740679831939,-420.0,0.00027564,2]
[354772343,1740679831948,-263.46204367,0.000289,5]
[354772344,1740679831958,-279.62884022,0.00029197,2]
[354772345,1740679831967,-587.0,0.00029848,2]
[354772346,1740679831976,-181.0,0.0003,2]
[354772347,1740679831985,-263.46204367,0.000309,5]
[354772348,1740679831994,-24900.0,0.00031209,2]
[354772349,1740679832003,-635.90818156,0.000313,5]
[354772350,1740679832012,-500.0,0.000313,5]
[354772351,1740679832021,-500.0,0.000313,5]
[354772352,1740679832031,-210.24941811,0.000313,5]
[354772353,1740679832039,-1678.4883874,0.00032157,2]
[354772354,1740679832048,-223.0,0.0003232,2]
[354772355,1740679832058,-2144.0440657,0.00032332,2]
[354772356,1740679832067,-177.975117,0.00032877,2]
[354772357,1740679832076,-263.46204367,0.000329,6]
[354772358,1740679832085,-169.870073,0.00034023,2]
[354772359,1740679832094,-195.0875016,0.00034419,2]
[354772360,1740679832103,-169.870073,0.00034448,2]
[354772361,1740679832113,-169.870073,0.00034873,2]
[354772362,1740679832122,-263.46204367,0.000349,7]
[354772363,1740679832131,-339.29667581,0.00035198,2]
[354772364,1740679832142,-169.870073,0.00035298,2]
[354772365,1740679832158,-169.870073,0.00035724,2]
[354772366,1740679832167,-250.0,0.0003598,2]
[354772367,1740679832177,-160.30984754,0.00036147,2]
[354772368,1740679832187,-169.870073,0.00036149,2]
[354772369,1740679832197,-3008.3128351,0.00036169,2]
[354772370,1740679832206,-169.870073,0.00036574,2]
[354772371,1740679832215,-502.04676259,0.00036779,5]
[354772372,1740679832225,-602.33728723,0.00036779,5]
[354772373,1740679832234,-263.46204367,0.000369,7]
[354772374,1740679832244,-169.870073,0.00037,2]
[354772375,1740679832253,-169.870073,0.00037425,2]
[354772376,1740679832262,-263.46204367,0.000389,8]
[354772377,1740679832271,-175.23000215,0.00039999,2]
[354772378,1740679832281,-263.46204367,0.000409,8]
[354772379,1740679832290,-197.75108941,0.00042148,2]
[354772380,1740679832299,-339.2966758,0.00042206,2]
[354772381,1740679832309,-263.46204367,0.000429,9]
[354772382,1740679832318,-19607.61712864,0.00042911,2]
[354772383,1740679832327,-160.0,0.00043169,2]
[354772384,1740679832336,-263.46204367,0.000449,10]
[354772385,1740679832345,-263.46204367,0.000469,10]
[354772386,1740679832354,-500.0,0.000469,10]
[354772387,1740679832364,-187.0,0.00047,90]
[354772388,1740679832373,-168.4816901,0.00048597,4]
[354772389,1740679832382,-263.46204367,0.000489,11]
[354772390,1740679832391,-1000.46846702,0.00049,2]
[354772391,1740679832400,-1146.11,0.00049038,30]
[354772392,1740679832409,-2000.0,0.00049041,10]
[354772393,1740679832418,-1375.34,0.00049048,30]
[354772394,1740679832428,-663.26,0.00049048,30]
[354772395,1740679832437,-1980.48,0.00049056,30]
[354772396,1740679832446,-1650.4,0.00049056,30]
[354772397,1740679832455,-552.72,0.00049056,30]
[354772398,1740679832464,-955.1,0.00049058,30]
[354772399,1740679832473,-795.91,0.00049058,30]
[354772400,1740679832483,-319.86,0.00049058,30]
[354772401,1740679832492,-10032.94,0.00049066,10]
[354772402,1740679832501,-4000.0,0.00049068,10]
[354772403,1740679832510,-383.83,0.00049076,30]
[354772404,1740679832519,-12039.53,0.00049076,10]
[354772405,1740679832530,-6313.55,0.00049086,10]
[354772406,1740679832539,-460.6,0.00049086,30]
[354772407,1740679832548,-6000.0,0.00049096,10]
[354772408,1740679832557,-8000.0,0.00049123,10]
[354772409,1740679832566,-645.18009151,0.00049151,10]
[354772410,1740679832575,-1586.44716622,0.00049213,2]
[354772411,1740679832584,-339.2966758,0.00049214,2]
[354772412,1740679832593,-3000.0,0.00049215,2]
[354772413,1740679832603,-5402.30000001,0.00049215,120]
[354772414,1740679832612,-1586.44716621,0.00049282,2]
[354772415,1740679832621,-1000.0,0.00049313,120]
[354772416,1740679832631,-18089.39,0.00049313,120]
[354772417,1740679832640,-278.3104808,0.00049314,120]
[354772418,1740679832649,-500.0,0.00049314,31]
[354772419,1740679832658,-221.44665832,0.00049314,31]
[354772420,1740679832667,-312.12784012,0.00049314,31]
[354772490,1740679842733,-16.78236367,0.00049066,10]
[354772491,1740679842761,-8343.99763633,0.00049066,10]
[354772492,1740679842771,-266.55,0.00049305,30]
[354772493,1740679842781,-187.87215988,0.00049314,31]
[354772494,1740679842790,-501.18315596,0.00049314,120]
[354772495,1740679842799,-500.0,0.00049314,120]
[354772496,1740679842809,-194.81733656,0.00049314,120]
[354772497,1740679842818,-390.59826086,0.00049314,31]
[354772498,1740679842827,-500.0,0.00049314,120]
[354772499,1740679842837,-500.0,0.00049314,120]
[354772500,1740679842846,-500.0,0.00049314,120]
[354772501,1740679842855,-535.94966363,0.00049314,120]
[354772502,1740679842864,-500.0,0.00049314,120]
[354772503,1740679842874,-500.0,0.00049314,2]
[354772504,1740679842882,-500.0,0.00049314,120]
[354772505,1740679842892,-417.73069445,0.00049314,120]
[354772506,1740679842901,-500.0,0.00049314,2]
[354772507,1740679842910,-500.0,0.00049314,120]
[354772508,1740679842919,-500.0,0.00049314,2]
[354772509,1740679842928,-500.0,0.00049314,120]
[354772510,1740679842937,-500.0,0.00049314,2]
[354772511,1740679842946,-180.12832767,0.00049314,120]
[354772512,1740679842955,-500.0,0.00049314,2]
[354772513,1740679842966,-500.0,0.00049314,120]
[354772514,1740679843089,-500.0,0.00049314,120]
[354772515,1740679843098,-500.0,0.00049314,2]
[354772516,1740679843107,-500.0,0.00049314,120]
[354772517,1740679843116,-500.0,0.00049314,2]
[354772518,1740679843125,-500.0,0.00049314,120]
[354772519,1740679843135,-500.0,0.00049314,2]
[354772520,1740679843144,-500.0,0.00049314,120]
[354772521,1740679843156,-500.0,0.00049314,2]
[354772522,1740679843165,-500.0,0.00049314,120]
[354772523,1740679843174,-500.0,0.00049314,2]
[354772524,1740679843185,-500.0,0.00049314,120]
[354772525,1740679843194,-477.3566429,0.00049314,2]
[354772526,1740679843203,-500.0,0.00049314,2]
[354772527,1740679843212,-500.0,0.00049314,120]
[354772528,1740679843222,-500.0,0.00049314,2]
[354772529,1740679843231,-500.0,0.00049314,120]
[354772530,1740679843241,-500.0,0.00049314,2]
[354772531,1740679843250,-500.0,0.00049314,120]
[354772532,1740679843259,-500.0,0.00049314,120]
[354772533,1740679843268,-500.0,0.00049314,2]
[354772534,1740679843278,-500.0,0.00049314,120]
[354772535,1740679843288,-500.0,0.00049314,2]
[354772536,1740679843297,-500.0,0.00049314,2]
[354772537,1740679843307,-500.0,0.00049314,2]
[354772538,1740679843316,-500.0,0.00049314,2]
[354772539,1740679843326,-500.0,0.00049314,120]
[354772540,1740679843335,-500.0,0.00049314,2]
[354772541,1740679843346,-500.0,0.00049314,120]
[354772542,1740679843355,-500.0,0.00049314,2]
[354772543,1740679843365,-500.0,0.00049314,120]
[354772544,1740679843374,-500.0,0.00049314,2]
[354772545,1740679843382,-500.0,0.00049314,120]
[354772546,1740679843392,-500.0,0.00049314,120]
[354772547,1740679843401,-500.0,0.00049314,2]
[354772548,1740679843410,-500.0,0.00049314,120]
[354772549,1740679843419,-51.74562533,0.00049314,2]
[354772554,1740680037154,493.62,0.00025,2]
[354772555,1740680071107,3000.0,0.00052653,120]
[354772573,1740680912686,76667.09200127,0.00052659,120]
[354772574,1740680915070,1264.69886397,0.00052659,90]
[354772575,1740680916986,39218.41687853,0.000145,2]
[354772576,1740680917010,66817.68929793,0.000145,2]
[354772608,1740681032028,-177.975117,0.00032877,2]
[354772609,1740681032038,-151.0,0.00034999,2]
[354772610,1740681032048,-7167.0,0.00035,2]
[354772611,1740681032057,-206.18768636,0.000399,8]
[354772612,1740681032067,-335.87151611,0.0004,30]
[354772613,1740681032076,-206.18768635,0.00041945,9]
[354772614,1740681032086,-163.0,0.00043967,2]
[354772615,1740681032095,-12174.80849408,0.00043967,2]
[354772636,1740681037918,-2336.03766822,0.00043967,2]
[354772637,1740681037928,-206.18768635,0.00043991,9]
[354772638,1740681037937,-22267.2409228,0.00044036,2]
[354772639,1740681037947,-206.18768635,0.00046036,10]
[354772640,1740681037956,-1171.52744336,0.00047114,120]
[354772641,1740681037966,-1855.90947865,0.0004713,2]
[354772642,1740681037975,-206.18768635,0.00048082,11]
[354772643,1740681037984,-843.12475463,0.00048597,2]
[354772644,1740681037993,-168.4816901,0.00048597,4]
[354772645,1740681038002,-2000.0,0.00049041,10]
[354772646,1740681038011,-4000.0,0.00049068,10]
[354772647,1740681038020,-440.32381592,0.00049096,10]
[354772648,1740681038030,-3000.0,0.00049215,2]
[354772649,1740681038039,-222.12,0.00049304,30]
[354772650,1740681038049,-185.1,0.00049304,30]
[354772651,1740681038058,-154.25,0.00049304,30]
[354772652,1740681038067,-771.3,0.00049304,30]
[354772653,1740681038077,-4032.01,0.00049305,10]
[354772654,1740681038087,-610.26514134,0.00049313,9]
[354772655,1740681038096,-500.0,0.00049314,2]
[354772656,1740681038106,-500.0,0.00049314,120]
[354772657,1740681038115,-500.0,0.00049314,2]
[354772658,1740681038125,-530.07413873,0.00049314,120]
[354772659,1740681038134,-500.0,0.00049314,120]
[354772660,1740681038143,-500.0,0.00049314,2]
[354772661,1740681038152,-500.0,0.00049314,120]
[354772662,1740681038161,-500.0,0.00049314,2]
[354772663,1740681038171,-500.0,0.00049314,120]
[354772664,1740681038180,-601.1646015,0.00049314,2]
[354772665,1740681038189,-289.01828905,0.00049314,2]
[354772666,1740681038199,-17335.66,0.00049314,120]
[354772667,1740681038207,-194.83671354,0.00049314,31]
[354772668,1740681038216,-300.0,0.00049314,120]
[354772669,1740681038225,-151.436809,0.00049315,120]
[354772670,1740681038234,-500.0,0.00049315,120]
[354772671,1740681038244,-501.98971261,0.00049315,120]
[354772672,1740681038253,-500.0,0.00049315,30]
[354772673,1740681038263,-500.86906289,0.00049315,120]
[354772674,1740681038272,-500.0,0.00049315,120]
[354772675,1740681038281,-500.0,0.00049315,120]
[354772676,1740681038292,-500.0,0.00049315,120]
[354772677,1740681038300,-500.0,0.00049315,120]
[354772678,1740681038309,-500.0,0.00049315,120]
[354772679,1740681038318,-463.94485795,0.00049315,120]
[354772680,1740681038327,-500.0,0.00049315,120]
[354772681,1740681038337,-500.0,0.00049315,120]
[354772682,1740681038346,-500.0,0.00049315,120]
[354772683,1740681038355,-500.0,0.00049315,120]
[354772684,1740681038364,-500.0,0.00049315,120]
[354772685,1740681038374,-500.0,0.00049315,120]
[354772686,1740681038384,-500.0,0.00049315,120]
[354772687,1740681038393,-500.0,0.00049315,120]
[354772688,1740681038402,-500.0,0.00049315,120]
[354772689,1740681038411,-500.0,0.00049315,120]
[354772690,1740681038421,-500.0,0.00049315,120]
[354772691,1740681038430,-500.0,0.00049315,120]
[354772692,1740681038439,-500.0,0.00049315,120]
[354772693,1740681038449,-151.0,0.00049315,120]
[354772694,1740681038458,-151.0,0.00049315,120]
[354772695,1740681038467,-151.0,0.00049315,120]
[354772696,1740681038476,-500.0,0.00049315,120]
[354772697,1740681038486,-504.7372326,0.00049315,120]
[354772698,1740681038495,-500.0,0.00049315,120]
[354772699,1740681038503,-500.0254818,0.00049315,120]
[354772700,1740681038512,-500.0,0.00049315,120]
[354772701,1740681038521,-500.0,0.00049315,120]
[354772702,1740681038530,-504.63789493,0.00049315,120]
[354772703,1740681038541,-500.0,0.00049315,120]
[354772704,1740681038550,-503.63439227,0.00049315,120]
[354772705,1740681038563,-500.0,0.00049315,120]
[354772706,1740681038572,-500.0,0.00049315,120]
[354772707,1740681038581,-512.36350775,0.00049315,120]
[354772708,1740681038591,-500.0,0.00049315,120]
[354772709,1740681038602,-500.0,0.00049315,120]
[354772710,1740681038615,-151.0,0.00049315,120]
[354772711,1740681038625,-500.0,0.00049315,120]
[354772712,1740681038634,-500.0,0.00049315,120]
[354772713,1740681038645,-500.0,0.00049315,120]
[354772714,1740681038655,-500.0,0.00049315,14]
[354772715,1740681038663,-500.0,0.00049315,120]
[354772716,1740681038672,-500.0,0.00049315,120]
[354772717,1740681038682,-500.0,0.00049315,120]
[354772718,1740681038693,-1000.0,0.00049315,20]
[354772719,1740681038703,-500.0,0.00049315,120]
[354772720,1740681038712,-500.0,0.00049315,120]
[354772721,1740681038722,-500.0,0.00049315,120]
[354772722,1740681038731,-500.0,0.00049315,120]
[354772723,1740681038741,-201.27793882,0.00049315,120]
[354772724,1740681038750,-240.32930766,0.00049315,120]
[354772725,1740681038760,-502.34656903,0.00049315,120]
[354772726,1740681038769,-500.0,0.00049315,120]
[354772727,1740681038779,-500.0,0.00049315,120]
[354772728,1740681038788,-500.0,0.00049315,120]
[354772729,1740681038799,-500.0,0.00049315,120]
[354772730,1740681038808,-503.88204629,0.00049315,120]
[354772731,1740681038818,-502.93082119,0.00049315,120]
[354772732,1740681038827,-500.0,0.00049315,120]
[354772733,1740681038836,-500.0,0.00049315,120]
[354772734,1740681038846,-500.0,0.00049315,120]
[354772735,1740681038855,-500.0,0.00049315,120]
[354772736,1740681038864,-159.39285376,0.00049315,120]
[354772737,1740681038873,-455.31173304,0.00049315,120]
[354772738,1740681038883,-500.0,0.00049315,120]
[354772739,1740681038892,-500.0,0.00049315,120]
[354772740,1740681038902,-500.0,0.00049315,120]
[354772741,1740681038911,-500.0,0.00049315,120]
[354772742,1740681038921,-500.0,0.00049315,120]
[354772743,1740681038931,-500.0,0.00049315,120]
[354772744,1740681038940,-500.0,0.00049315,120]
[354772745,1740681038950,-500.0,0.00049315,120]
[354772746,1740681038959,-500.0,0.00049315,120]
[354772747,1740681038968,-500.0,0.00049315,120]
[354772748,1740681038977,-500.0,0.00049315,120]
[354772749,1740681038986,-500.0,0.00049315,120]
[354772750,1740681038997,-505.46744743,0.00049315,120]
[354772751,1740681039006,-500.0,0.00049315,120]
[354772752,1740681039015,-500.0,0.00049315,120]
[354772753,1740681039025,-500.0,0.00049315,120]
[354772754,1740681039034,-500.0,0.00049315,120]
[354772755,1740681039044,-500.0,0.00049315,120]
[354772756,1740681039054,-500.0,0.00049315,120]
[354772757,1740681039064,-500.0,0.00049315,120]
[354772758,1740681039073,-500.0,0.00049315,120]
[354772759,1740681039082,-500.0,0.00049315,120]
[354772760,1740681039098,-500.0,0.00049315,120]
[354772761,1740681039107,-500.0,0.00049315,120]
[354772762,1740681039117,-505.6646325,0.00049315,120]
[354772763,1740681039126,-500.0,0.00049315,120]
[354772764,1740681039135,-500.0,0.00049315,120]
[354772765,1740681039144,-500.0,0.00049315,120]
[354772766,1740681039154,-298.4884716,0.00049315,120]
[354772767,1740681039163,-500.0,0.00049315,120]
[354772768,1740681039172,-500.0,0.00049315,120]
[354772769,1740681039182,-500.0,0.00049315,120]
[354772770,1740681039192,-500.0,0.00049315,120]
[354772771,1740681039203,-500.0,0.00049315,120]
[354772772,1740681039213,-500.0,0.00049315,120]
[354772773,1740681039223,-264.84377771,0.00049315,120]
[354772774,1740681039233,-500.0,0.00049315,120]
[354772775,1740681039243,-500.0,0.00049315,120]
[354772776,1740681039253,-500.0,0.00049315,120]
[354772777,1740681039263,-500.0,0.00049315,120]
[354772778,1740681039272,-500.0,0.00049315,120]
[354772779,1740681039282,-500.0,0.00049315,120]
[354772780,1740681039292,-501.54922343,0.00049315,120]
[354772781,1740681039301,-500.0,0.00049315,120]
[354772782,1740681039311,-500.0,0.00049315,120]
[354772783,1740681039321,-151.0,0.00049315,120]
[354772784,1740681039332,-172.602968,0.00049315,120]
[354772785,1740681039342,-500.0,0.00049315,120]
[354772786,1740681039351,-500.0,0.00049315,120]
[354772787,1740681039361,-151.0,0.00049315,120]
[354772788,1740681039371,-151.0,0.00049315,120]
[354772789,1740681039380,-245.25038,0.00049315,120]
[354772790,1740681039391,-500.0,0.00049315,120]
[354772791,1740681039401,-500.0,0.00049315,120]
[354772792,1740681039411,-500.0,0.00049315,120]
[354772793,1740681039421,-500.0,0.00049315,120]
[354772794,1740681039431,-293.03795943,0.00049315,120]
[354772795,1740681039442,-500.0,0.00049315,120]
[354772796,1740681039452,-500.0,0.00049315,120]
[354772797,1740681039463,-500.0,0.00049315,120]
[354772798,1740681039473,-500.0,0.00049315,120]
[354772799,1740681039484,-200.0,0.00049315,7]
[354772810,1740681039623,-500.0,0.00049315,120]
[354772811,1740681039633,-500.0,0.00049315,120]
[354772812,1740681039643,-500.0,0.00049315,120]
[354772813,1740681039654,-500.0,0.00049315,120]
[354772814,1740681039663,-500.0,0.00049315,120]
[354772815,1740681039672,-151.0,0.00049315,120]
[354772816,1740681039684,-500.0,0.00049315,120]
[354772817,1740681039694,-500.0,0.00049315,120]
[354772818,1740681039703,-500.0,0.00049315,120]
[354772819,1740681039712,-500.0,0.00049315,120]
[354772820,1740681039721,-500.0,0.00049315,120]
[354772821,1740681039730,-500.0,0.00049315,120]
[354772822,1740681039740,-500.0,0.00049315,120]
[354772823,1740681039749,-500.0,0.00049315,120]
[354772824,1740681039758,-500.0,0.00049315,120]
[354772825,1740681039767,-454.00406083,0.00049315,120]
[354772826,1740681039776,-500.0,0.00049315,120]
[354772827,1740681039786,-500.0,0.00049315,120]
[354772828,1740681039796,-500.0,0.00049315,120]
[354772829,1740681039805,-559.59390385,0.00049315,120]
[354772830,1740681039815,-500.0,0.00049315,120]
[354772831,1740681039824,-501.03464938,0.00049315,120]
[354772832,1740681039833,-500.0,0.00049315,120]
[354772833,1740681039843,-500.0,0.00049315,120]
[354772834,1740681039851,-500.0,0.00049315,120]
[354772835,1740681039860,-500.0,0.00049315,120]
[354772836,1740681039870,-502.09228693,0.00049315,120]
[354772837,1740681039879,-500.0,0.00049315,45]
[354772838,1740681039889,-500.0,0.00049315,120]
[354772839,1740681039898,-550.79799849,0.00049315,120]
[354772840,1740681039908,-500.0,0.00049315,120]
[354772841,1740681039917,-500.0,0.00049315,120]
[354772842,1740681039927,-500.0,0.00049315,120]
[354772843,1740681039935,-151.0,0.00049315,120]
[354772844,1740681039945,-500.0,0.00049315,120]
[354772845,1740681039954,-151.0,0.00049315,120]
[354772846,1740681039965,-151.0,0.00049315,120]
[354772847,1740681039974,-151.0,0.00049315,2]
[354772848,1740681039983,-151.0,0.00049315,2]
[354772849,1740681039991,-151.0,0.00049315,2]
[354772850,1740681040000,-151.0,0.00049315,2]
[354772851,1740681040010,-500.0,0.00049315,120]
[354772852,1740681040019,-500.0,0.00049315,120]
[354772853,1740681040028,-500.0,0.00049315,120]
[354772854,1740681040037,-500.0,0.00049315,120]
[354772855,1740681040048,-500.0,0.00049315,120]
[354772856,1740681040058,-249.947543,0.00049315,120]
[354772857,1740681040067,-500.0,0.00049315,120]
[354772858,1740681040077,-500.0,0.00049315,120]
[354772859,1740681040086,-500.0,0.00049315,120]
[354772860,1740681040095,-500.0,0.00049315,120]
[354772861,1740681040104,-213.3722867,0.00049315,120]
[354772862,1740681040114,-500.0,0.00049315,120]
[354772863,1740681040123,-501.05808936,0.00049315,120]
[354772864,1740681040133,-500.0,0.00049315,120]
[354772865,1740681040142,-500.0,0.00049315,120]
[354772866,1740681040151,-540.97,0.00049315,120]
[354772867,1740681040161,-649.63860799,0.00049315,120]
[354772868,1740681040170,-500.0,0.00049315,120]
[354772869,1740681040179,-500.0,0.00049315,120]